fUSD/lending_fUSD_20240301
["ID","MTS","AMOUNT","RATE_DAILY","PERIOD"]
[316036175,1709329877562,-500.0,0.00022575,2]
[316036176,1709329877572,-500.0,0.00022575,2]
[316036177,1709329877582,-1119.59,0.00022575,2]
[316036178,1709329877591,-1107.97,0.00022575,2]
[316036179,1709329877601,-500.0,0.00022575,2]
[316036180,1709329877611,-616.79,0.00022575,2]
[316036181,1709329877621,-500.0,0.00022575,2]
[316036182,1709329877631,-244.07262911,0.00022575,2]
[316036183,1709329877640,-500.0,0.00022575,2]
[316036184,1709329877650,-500.0,0.00022575,2]
[316036185,1709329877660,-500.0,0.00022575,2]
[316036186,1709329877671,-500.0,0.00022575,2]
[316036187,1709329877680,-541.7,0.00022575,2]
[316036188,1709329877690,-1107.79,0.00022575,2]
[316036189,1709329877701,-730.36,0.00022575,2]
[316036190,1709329877710,-602.74,0.00022575,2]
[316036191,1709329877720,-1814.09,0.00022575,2]
[316036192,1709329877732,-1150.49,0.00022575,2]
[316036193,1709329877743,-500.0,0.00022575,2]
[316036194,1709329877753,-968.24,0.00022575,2]
[316036195,1709329877763,-500.0,0.00022575,2]
[316036196,1709329877773,-530.77,0.00022575,2]
[316036197,1709329877783,-507.08,0.00022575,2]
[316036198,1709329877794,-500.0,0.00022575,2]
[316036199,1709329877804,-652.15,0.00022575,2]
[316036200,1709329877814,-500.0,0.00022575,2]
[316036201,1709329877824,-500.0,0.00022575,2]
[316036202,1709329877835,-1032.01,0.00022575,2]
[316036203,1709329877845,-500.0,0.00022575,2]
[316036204,1709329877855,-500.0,0.00022575,2]
[316036205,1709329877864,-1859.1,0.00022575,2]
[316036206,1709329877875,-500.0,0.00022575,2]
[316036207,1709329877885,-500.0,0.00022575,2]
[316036208,1709329877895,-500.0,0.00022575,2]
[316036209,1709329877905,-2102.91,0.00022575,2]
[316036210,1709329877915,-500.0,0.00022575,2]
[316036211,1709329877924,-874.99,0.00022575,2]
[316036212,1709329877934,-500.0,0.00022575,2]
[316036213,1709329877945,-500.0,0.00022575,2]
[316036214,1709329877955,-500.0,0.00022575,2]
[316036215,1709329877966,-500.0,0.00022575,2]
[316036216,1709329877976,-839.24,0.00022575,2]
[316036217,1709329877986,-558.92,0.00022575,2]
[316036218,1709329877996,-500.0,0.00022575,2]
[316036219,1709329878007,-1097.63,0.00022575,2]
[316036220,1709329878017,-741.98,0.00022575,2]
[316036221,1709329878028,-744.7,0.00022575,2]
[316036222,1709329878038,-631.06,0.00022575,2]
[316036223,1709329878048,-500.0,0.00022575,2]
[316036224,1709329878058,-500.0,0.00022575,2]
[316036225,1709329878069,-2070.65,0.00022575,2]
[316036226,1709329878080,-760.9,0.00022575,2]
[316036227,1709329878091,-684.4,0.00022575,2]
[316036228,1709329878101,-722.67,0.00022575,2]
[316036229,1709329878111,-500.0,0.00022575,2]
[316036230,1709329878121,-1373.74,0.00022575,2]
[316036231,1709329878131,-248.07275963,0.00022575,2]
[316036232,1709329878143,-500.0,0.00022575,2]
[316036233,1709329878154,-3986.3,0.00022575,2]
[316036234,1709329878164,-1536.66,0.00022575,2]
[316036235,1709329878174,-5704.02,0.00022575,2]
[316036236,1709329878185,-2939.1,0.00022575,2]
[316036237,1709329878196,-1390.92,0.00022575,2]
[316036238,1709329878206,-6997.69,0.00022575,2]
[316036239,1709329878221,-500.0,0.00022575,2]
[316036240,1709329878232,-212.96885761,0.00022575,2]
[316036241,1709329878243,-4442.43,0.00022575,2]
[316036242,1709329878254,-2228.9,0.00022575,2]
[316036243,1709329878265,-1976.49,0.00022575,2]
[316036244,1709329878275,-3123.93,0.00022575,2]
[316036245,1709329878287,-500.0,0.00022575,2]
[316036246,1709329878297,-1147.94,0.00022575,2]
[316036247,1709329878308,-500.0,0.00022575,2]
[316036248,1709329878318,-20416.4,0.00022575,2]
[316036249,1709329878328,-500.0,0.00022575,2]
[316036250,1709329878339,-585.63,0.00022575,2]
[316036251,1709329878349,-500.0,0.00022575,2]
[316036252,1709329878360,-9797.77,0.00022575,2]
[316036253,1709329878370,-6799.24,0.00022575,2]
[316036254,1709329878381,-439.6,0.00022575,2]
[316036255,1709329878391,-500.0,0.00022575,2]
[316036256,1709329878401,-650.69,0.00022575,2]
[316036257,1709329878411,-1385.03,0.00022575,2]
[316036258,1709329878420,-500.0,0.00022575,2]
[316036259,1709329878434,-2124.38,0.00022575,2]
[316036260,1709329878475,-694.46,0.00022575,2]
[316036261,1709329878487,-614.08,0.00022575,2]
[316036262,1709329878497,-2499.33,0.00022575,2]
[316036263,1709329878507,-500.0,0.00022575,2]
[316036264,1709329878516,-500.0,0.00022575,2]
[316036265,1709329878527,-3910.29,0.00022575,2]
[316036266,1709329878536,-1061.29106492,0.00022593,2]
[316036267,1709329878546,-2000.0,0.000226,2]
[316036268,1709329878556,-180.0,0.00022603,2]
[316036269,1709329878566,-1379.07328621,0.00022603,2]
[316036270,1709329878575,-223.34,0.00022605,2]
[316036271,1709329878585,-155.19928272,0.0002261,2]
[316036272,1709329878595,-520.0,0.00022634,2]
[316036273,1709329878605,-804.49269193,0.00022659,6]
[316036274,1709329878614,-280.51786831,0.00022683,2]
[316036275,1709329878624,-150.0,0.00022683,2]
[316036276,1709329878634,-500.0,0.00022684,2]
[316036277,1709329878645,-500.0,0.00022684,2]
[316036278,1709329878654,-612.05,0.00022684,2]
[316036279,1709329878663,-500.0,0.00022684,2]
[316036280,1709329878673,-500.0,0.00022684,2]
[316036281,1709329878682,-500.0,0.00022684,2]
[316036282,1709329878693,-500.0,0.00022684,2]
[316036283,1709329878702,-500.0,0.00022684,2]
[316036284,1709329878712,-500.0,0.00022684,2]
[316036285,1709329878722,-500.0,0.00022684,2]
[316036286,1709329878732,-500.0,0.00022684,2]
[316036287,1709329878742,-500.0,0.00022684,2]
[316036288,1709329878752,-500.0,0.00022684,2]
[316036289,1709329878761,-500.0,0.00022684,2]
[316036290,1709329878771,-500.0,0.00022684,2]
[316036291,1709329878781,-500.0,0.00022684,2]
[316036292,1709329878791,-500.0,0.00022684,2]
[316036293,1709329878800,-648.85,0.00022684,2]
[316036294,1709329878810,-500.0,0.00022684,2]
[316036295,1709329878820,-500.0,0.00022684,2]
[316036296,1709329878829,-500.0,0.00022684,2]
[316036297,1709329878839,-548.39,0.00022684,2]
[316036298,1709329878849,-500.0,0.00022684,2]
[316036299,1709329878859,-500.0,0.00022684,2]
[316036300,1709329878869,-500.0,0.00022684,2]
[316036301,1709329878879,-517.5754633,0.00022684,2]
[316036302,1709329878888,-529.09803874,0.00022684,2]
[316036303,1709329878899,-500.0,0.00022684,2]
[316036304,1709329878909,-500.0,0.00022684,2]
[316036305,1709329878919,-500.0,0.00022684,2]
[316036306,1709329878930,-547.18,0.00022684,2]
[316036307,1709329878940,-211.69819733,0.00022684,2]
[316036308,1709329878950,-500.0,0.00022684,2]
[316036309,1709329878960,-500.0,0.00022684,2]
[316036310,1709329878970,-500.0,0.00022684,2]
[316036311,1709329878982,-500.0,0.00022684,2]
[316036312,1709329878991,-500.0,0.00022684,2]
[316036313,1709329879000,-248.35493804,0.00022684,2]
[316036314,1709329879010,-500.0,0.00022684,2]
[316036315,1709329879019,-500.0,0.00022684,2]
[316036316,1709329879028,-500.0,0.00022684,2]
[316036317,1709329879039,-560.2,0.00022684,2]
[316036318,1709329879049,-712.48,0.00022684,2]
[316036319,1709329879059,-500.0,0.00022684,2]
[316036320,1709329879069,-583.5,0.00022684,2]
[316036321,1709329879080,-885.54,0.00022684,2]
[316036322,1709329879090,-641.34,0.00022684,2]
[316036323,1709329879101,-541.37,0.00022684,2]
[316036324,1709329879110,-500.0,0.00022684,2]
[316036325,1709329879120,-500.0,0.00022684,2]
[316036326,1709329879130,-500.0,0.00022684,2]
[316036327,1709329879140,-665.0,0.00022684,2]
[316036328,1709329879150,-500.0,0.00022684,2]
[316036329,1709329879160,-500.0,0.00022684,2]
[316036330,1709329879169,-500.0,0.00022684,2]
[316036331,1709329879179,-500.0,0.00022684,2]
[316036332,1709329879188,-500.0,0.00022684,2]
[316036333,1709329879197,-729.93,0.00022684,2]
[316036334,1709329879207,-153.38323613,0.00022684,2]
[316036335,1709329879217,-500.0,0.00022684,2]
[316036336,1709329879228,-661.91,0.00022684,2]
[316036337,1709329879237,-593.69,0.00022684,2]
[316036338,1709329879247,-500.0,0.00022684,2]
[316036339,1709329879257,-500.0,0.00022684,2]
[316036340,1709329879267,-707.97,0.00022684,2]
[316036341,1709329879278,-1167.66,0.00022684,2]
[316036342,1709329879288,-500.0,0.00022684,2]
[316036343,1709329879298,-782.5,0.00022684,2]
[316036344,1709329879308,-500.0,0.00022684,2]
[316036345,1709329879318,-500.0,0.00022684,2]
[316036346,1709329879327,-751.17,0.00022684,2]
[316036347,1709329879337,-500.0,0.00022684,2]
[316036348,1709329879346,-579.14589908,0.00022684,2]
[316036349,1709329879356,-500.0,0.00022684,2]
[316036350,1709329879366,-500.0,0.00022684,2]
[316036351,1709329879375,-506.58,0.00022684,2]
[316036352,1709329879385,-500.0,0.00022684,2]
[316036353,1709329879395,-514.76,0.00022684,2]
[316036354,1709329879405,-500.0,0.00022684,2]
[316036355,1709329879414,-658.49,0.00022684,2]
[316036356,1709329879424,-500.0,0.00022684,2]
[316036357,1709329879436,-500.0,0.00022684,2]
[316036358,1709329879445,-500.0,0.00022684,2]
[316036359,1709329879455,-500.0,0.00022684,2]
[316036360,1709329879465,-654.07,0.00022684,2]
[316036361,1709329879478,-632.31,0.00022684,2]
[316036362,1709329879488,-500.0,0.00022684,2]
[316036363,1709329879502,-566.35,0.00022684,2]
[316036364,1709329879511,-500.0,0.00022684,2]
[316036365,1709329879521,-500.0,0.00022684,2]
[316036366,1709329879530,-500.0,0.00022684,2]
[316036367,1709329879540,-776.51,0.00022684,2]
[316036368,1709329879549,-500.0,0.00022684,2]
[316036369,1709329879559,-1052.06,0.00022684,2]
[316036370,1709329879569,-500.0,0.00022684,2]
[316036371,1709329879578,-500.0,0.00022684,2]
[316036372,1709329879588,-500.0,0.00022684,2]
[316036373,1709329879598,-500.0,0.00022684,2]
[316036374,1709329879607,-500.0,0.00022684,2]
[316036375,1709329879616,-500.0,0.00022684,2]
[316036376,1709329879626,-500.0,0.00022684,2]
[316036377,1709329879636,-500.0,0.00022684,2]
[316036378,1709329879646,-500.0,0.00022684,2]
[316036379,1709329879656,-500.0,0.00022684,2]
[316036380,1709329879665,-500.0,0.00022684,2]
[316036381,1709329879676,-519.37,0.00022684,2]
[316036382,1709329879686,-500.0,0.00022684,2]
[316036383,1709329879695,-1193.37,0.00022684,2]
[316036384,1709329879706,-533.86,0.00022684,2]
[316036385,1709329879715,-975.14,0.00022684,2]
[316036386,1709329879724,-500.0,0.00022684,2]
[316036387,1709329879735,-609.74,0.00022684,2]
[316036388,1709329879746,-973.47,0.00022684,2]
[316036389,1709329879756,-500.0,0.00022684,2]
[316036390,1709329879769,-1798.71,0.00022684,2]
[316036391,1709329879779,-6097.19,0.00022684,2]
[316036392,1709329879789,-1033.26,0.00022684,2]
[316036393,1709329879799,-536.44,0.00022684,2]
[316036394,1709329879810,-2782.12,0.00022684,2]
[316036395,1709329879820,-630.64,0.00022684,2]
[316036396,1709329879829,-500.0,0.00022684,2]
[316036397,1709329879839,-960.18,0.00022684,2]
[316036398,1709329879849,-4675.12,0.00022684,2]
[316036399,1709329879860,-573.94,0.00022684,2]
[316036400,1709329879871,-500.0,0.00022684,2]
[316036401,1709329879881,-1664.27,0.00022684,2]
[316036402,1709329879892,-638.89,0.00022684,2]
[316036403,1709329879902,-517.54,0.00022684,2]
[316036404,1709329879913,-647.88,0.00022684,2]
[316036405,1709329879923,-500.0,0.00022684,2]
[316036406,1709329879934,-500.0,0.00022684,2]
[316036407,1709329879945,-736.08,0.00022684,2]
[316036408,1709329879955,-500.0,0.00022684,2]
[316036409,1709329879965,-2492.6,0.00022684,2]
[316036410,1709329879977,-1775.86,0.00022684,2]
[316036411,1709329879987,-500.0,0.00022684,2]
[316036412,1709329879997,-14638.31,0.00022684,2]
[316036413,1709329880007,-500.0,0.00022684,2]
[316036414,1709329880017,-500.0,0.00022684,2]
[316036415,1709329880026,-500.0,0.00022684,2]
[316036416,1709329880038,-755.42,0.00022684,2]
[316036417,1709329880048,-1622.72,0.00022684,2]
[316036418,1709329880059,-2036.03,0.00022684,2]
[316036419,1709329880069,-11286.34,0.00022684,2]
[316036420,1709329880079,-15703.3,0.00022684,2]
[316036421,1709329880089,-500.0,0.00022684,2]
[316036422,1709329880099,-500.0,0.00022684,2]
[316036423,1709329880110,-1103.17,0.00022684,2]
[316036424,1709329880121,-500.0,0.00022684,2]
[316036425,1709329880132,-500.0,0.00022684,2]
[316036426,1709329880142,-500.0,0.00022684,2]
[316036427,1709329880154,-2906.49,0.00022684,2]
[316036428,1709329880164,-500.0,0.00022684,2]
[316036429,1709329880174,-684.24,0.00022684,2]
[316036430,1709329880184,-500.0,0.00022684,2]
[316036431,1709329880195,-823.97,0.00022684,2]
[316036432,1709329880204,-690.14,0.00022684,2]
[316036433,1709329880215,-731.85,0.00022684,2]
[316036434,1709329880226,-1083.04,0.00022684,2]
[316036435,1709329880237,-500.0,0.00022684,2]
[316036436,1709329880247,-500.0,0.00022684,2]
[316036437,1709329880257,-4433.84,0.00022684,2]
[316036438,1709329880267,-500.0,0.00022684,2]
[316036439,1709329880277,-2409.57,0.00022684,2]
[316036440,1709329880287,-500.0,0.00022684,2]
[316036441,1709329880298,-793.07,0.00022684,2]
[316036442,1709329880308,-671.66,0.00022684,2]
[316036443,1709329880318,-500.0,0.00022684,2]
[316036444,1709329880328,-598.03,0.00022684,2]
[316036445,1709329880338,-906.18,0.00022684,2]
[316036446,1709329880348,-500.0,0.00022684,2]
[316036447,1709329880359,-500.0,0.00022684,2]
[316036448,1709329880369,-500.0,0.00022684,2]
[316036449,1709329880379,-1022.79,0.00022684,2]
[316036450,1709329880389,-500.0,0.00022684,2]
[316036451,1709329880399,-500.0,0.00022684,2]
[316036452,1709329880410,-500.0,0.00022684,2]
[316036453,1709329880420,-1867.58,0.00022684,2]
[316036454,1709329880430,-1009.37,0.00022684,2]
[316036455,1709329880442,-500.0,0.00022684,2]
[316036456,1709329880452,-500.0,0.00022684,2]
[316036457,1709329880463,-500.0,0.00022684,2]
[316036458,1709329880475,-690.45,0.00022684,2]
[316036459,1709329880486,-500.0,0.00022684,2]
[316036460,1709329880496,-570.01,0.00022684,2]
[316036461,1709329880506,-625.48300442,0.00022684,2]
[316036462,1709329880517,-582.33,0.00022684,2]
[316036463,1709329880527,-500.0,0.00022684,2]
[316036464,1709329880537,-1085.93,0.00022684,2]
[316036465,1709329880547,-8957.25,0.00022684,2]
[316036466,1709329880558,-500.0,0.00022684,2]
[316036467,1709329880568,-500.0,0.00022684,2]
[316036468,1709329880579,-652.7,0.00022684,2]
[316036469,1709329880588,-828.42,0.00022684,2]
[316036470,1709329880598,-628.37,0.00022684,2]
[316036471,1709329880608,-1936.54,0.00022684,2]
[316036472,1709329880618,-583.82,0.00022684,2]
[316036473,1709329880628,-2309.27,0.00022684,2]
[316036474,1709329880638,-772.94,0.00022684,2]
[316036475,1709329880648,-500.0,0.00022684,2]
[316036476,1709329880658,-1383.28,0.00022684,2]
[316036477,1709329880668,-648.79,0.00022684,2]
[316036478,1709329880679,-500.0,0.00022684,2]
[316036479,1709329880689,-500.0,0.00022684,2]
[316036480,1709329880700,-500.0,0.00022684,2]
[316036481,1709329880710,-1119.59,0.00022684,2]
[316036482,1709329880720,-1107.97,0.00022684,2]
[316036483,1709329880731,-616.79,0.00022684,2]
[316036484,1709329880742,-500.0,0.00022684,2]
[316036485,1709329880753,-581.24,0.00022684,2]
[316036486,1709329880764,-500.0,0.00022684,2]
[316036487,1709329880775,-500.0,0.00022684,2]
[316036488,1709329880785,-500.0,0.00022684,2]
[316036489,1709329880795,-500.0,0.00022684,2]
[316036490,1709329880806,-541.7,0.00022684,2]
[316036491,1709329880817,-730.36,0.00022684,2]
[316036492,1709329880828,-1107.79,0.00022684,2]
[316036493,1709329880838,-602.74,0.00022684,2]
[316036494,1709329880848,-1814.09,0.00022684,2]
[316036495,1709329880859,-1150.49,0.00022684,2]
[316036496,1709329880869,-500.0,0.00022684,2]
[316036497,1709329880881,-968.24,0.00022684,2]
[316036498,1709329880891,-500.0,0.00022684,2]
[316036499,1709329880901,-530.77,0.00022684,2]
[316036500,1709329880911,-507.08,0.00022684,2]
[316036501,1709329880922,-500.0,0.00022684,2]
[316036502,1709329880932,-652.15,0.00022684,2]
[316036503,1709329880942,-470.6611132,0.00022684,2]
[316036504,1709329880953,-500.0,0.00022684,2]
[316036505,1709329880962,-1032.01,0.00022684,2]
[316036506,1709329880973,-500.0,0.00022684,2]
[316036507,1709329880984,-500.0,0.00022684,2]
[316036508,1709329880994,-1859.1,0.00022684,2]
[316036509,1709329881004,-500.0,0.00022684,2]
[316036510,1709329881014,-500.0,0.00022684,2]
[316036511,1709329881024,-500.0,0.00022684,2]
[316036512,1709329881035,-2102.91,0.00022684,2]
[316036513,1709329881044,-500.0,0.00022684,2]
[316036514,1709329881055,-874.99,0.00022684,2]
[316036515,1709329881065,-500.0,0.00022684,2]
[316036516,1709329881075,-500.0,0.00022684,2]
[316036517,1709329881086,-500.0,0.00022684,2]
[316036518,1709329881096,-500.0,0.00022684,2]
[316036519,1709329881106,-839.24,0.00022684,2]
[316036520,1709329881115,-558.92,0.00022684,2]
[316036521,1709329881125,-500.0,0.00022684,2]
[316036522,1709329881136,-1097.63,0.00022684,2]
[316036523,1709329881146,-741.98,0.00022684,2]
[316036524,1709329881157,-744.7,0.00022684,2]
[316036525,1709329881168,-631.06,0.00022684,2]
[316036526,1709329881178,-500.0,0.00022684,2]
[316036527,1709329881189,-500.0,0.00022684,2]
[316036528,1709329881199,-2070.65,0.00022684,2]
[316036529,1709329881209,-760.9,0.00022684,2]
[316036530,1709329881220,-684.4,0.00022684,2]
[316036531,1709329881231,-722.67,0.00022684,2]
[316036532,1709329881241,-500.0,0.00022684,2]
[316036533,1709329881250,-1373.74,0.00022684,2]
[316036534,1709329881261,-500.0,0.00022684,2]
[316036535,1709329881272,-3986.3,0.00022684,2]
[316036536,1709329881283,-5704.02,0.00022684,2]
[316036537,1709329881293,-1536.66,0.00022684,2]
[316036538,1709329881304,-2939.1,0.00022684,2]
[316036539,1709329881314,-6997.69,0.00022684,2]
[316036540,1709329881324,-1390.92,0.00022684,2]
[316036541,1709329881334,-354.0540449,0.00022684,2]
[316036542,1709329881344,-4442.43,0.00022684,2]
[316036543,1709329881586,-2228.9,0.00022684,2]
[316036544,1709329881597,-1976.49,0.00022684,2]
[316036545,1709329881608,-3123.93,0.00022684,2]
[316036546,1709329881618,-500.0,0.00022684,2]
[316036547,1709329881629,-1147.94,0.00022684,2]
[316036548,1709329881639,-500.0,0.00022684,2]
[316036549,1709329881649,-20416.4,0.00022684,2]
[316036550,1709329881660,-586.64,0.00022684,2]
[316036551,1709329881670,-585.63,0.00022684,2]
[316036552,1709329881681,-500.0,0.00022684,2]
[316036553,1709329881691,-9797.77,0.00022684,2]
[316036554,1709329881702,-6799.24,0.00022684,2]
[316036555,1709329881712,-500.0,0.00022684,2]
[316036556,1709329881722,-650.69,0.00022684,2]
[316036557,1709329881735,-1385.03,0.00022684,2]
[316036558,1709329881746,-500.0,0.00022684,2]
[316036559,1709329881756,-2124.38,0.00022684,2]
[316036560,1709329881766,-694.46,0.00022684,2]
[316036561,1709329881777,-614.08,0.00022684,2]
[316036562,1709329881787,-2499.33,0.00022684,2]
[316036563,1709329881797,-500.0,0.00022684,2]
[316036564,1709329881808,-500.0,0.00022684,2]
[316036565,1709329881817,-200.0,0.00022687,2]
[316036566,1709329881829,-1363.0,0.000227,2]
[316036567,1709329881840,-500.0,0.000227,2]
[316036568,1709329881850,-500.0,0.000227,2]
[316036569,1709329881861,-500.0,0.000227,2]
[316036570,1709329881871,-500.0,0.000227,2]
[316036571,1709329881881,-500.0,0.000227,2]
[316036572,1709329881891,-500.0,0.000227,2]
[316036573,1709329881902,-500.0,0.000227,2]
[316036574,1709329881913,-500.0,0.000227,2]
[316036575,1709329881924,-500.0,0.000227,2]
[316036576,1709329881935,-500.0,0.000227,2]
[316036577,1709329881945,-500.0,0.000227,2]
[316036578,1709329881955,-500.0,0.000227,2]
[316036579,1709329881965,-500.0,0.000227,2]
[316036580,1709329881976,-500.0,0.000227,2]
[316036581,1709329881986,-500.0,0.000227,2]
[316036582,1709329881997,-500.0,0.000227,2]
[316036583,1709329882008,-500.0,0.000227,2]
[316036584,1709329882018,-500.0,0.000227,2]
[316036585,1709329882029,-500.0,0.000227,2]
[316036586,1709329882039,-500.0,0.000227,2]
[316036587,1709329882050,-500.0,0.000227,2]
[316036588,1709329882061,-500.0,0.000227,2]
[316036589,1709329882072,-500.0,0.000227,2]
[316036590,1709329882082,-500.0,0.000227,2]
[316036591,1709329882092,-500.0,0.000227,2]
[316036592,1709329882102,-500.0,0.000227,2]
[316036593,1709329882112,-500.0,0.000227,2]
[316036594,1709329882122,-500.0,0.000227,2]
[316036595,1709329882132,-500.0,0.000227,2]
[316036596,1709329882141,-500.0,0.000227,2]
[316036597,1709329882151,-353.66727149,0.000227,2]
[316036598,1709329882162,-1343.23506603,0.00022706,2]
[316036599,1709329882172,-150.0,0.00022728,2]
[316036600,1709329882181,-150.0,0.00022729,2]
[316036601,1709329882191,-166.27614995,0.00022731,2]
[316036602,1709329882200,-150.0,0.00022732,2]
[316036603,1709329882210,-150.0,0.00022738,2]
[316036604,1709329882219,-168.63,0.0002274,2]
[316036605,1709329882231,-168.63,0.0002274,2]
[316036606,1709329882240,-150.0,0.00022744,2]
[316036607,1709329882250,-150.0,0.00022749,2]
[316036608,1709329882261,-1379.07328621,0.00022752,2]
[316036609,1709329882271,-620.69,0.00022755,2]
[316036610,1709329882281,-188.79664354,0.0002276,2]
[316036611,1709329882291,-150.0,0.00022764,2]
[316036612,1709329882301,-150.0,0.00022764,2]
[316036613,1709329882311,-508.374,0.00022767,2]
[316036614,1709329882321,-406.0,0.00022767,2]
[316036615,1709329882331,-282.731,0.00022767,2]
[316036616,1709329882341,-150.0,0.00022767,2]
[316036617,1709329882350,-150.0,0.00022767,2]
[316036618,1709329882360,-150.0,0.00022769,2]
[316036619,1709329882370,-235.21695944,0.00022769,2]
[316036620,1709329882379,-300.0,0.0002277,2]
[316036621,1709329882389,-300.0,0.0002277,2]
[316036622,1709329882399,-150.0,0.0002277,2]
[316036623,1709329882409,-1197.93357264,0.0002277,2]
[316036624,1709329882419,-274.68709779,0.0002277,2]
[316036625,1709329882428,-119772.67548894,0.0002277,2]
[316036626,1709329882444,-150.0,0.00022776,2]
[316036627,1709329882454,-150.0,0.00022777,2]
[316036628,1709329882465,-150.0,0.00022783,2]
[316036629,1709329882474,-150.0,0.00022784,2]
[316036630,1709329882487,-150.0,0.00022784,2]
[316036631,1709329882497,-150.0,0.00022785,2]
[316036632,1709329882506,-150.0,0.00022787,2]
[316036633,1709329882517,-150.0,0.00022789,2]
[316036634,1709329882527,-150.0,0.00022789,2]
[316036635,1709329882537,-150.0,0.00022792,2]
[316036636,1709329882547,-4813.36,0.00022794,2]
[316036637,1709329882556,-500.0,0.00022794,2]
[316036638,1709329882566,-500.0,0.00022794,2]
[316036639,1709329882577,-500.0,0.00022794,2]
[316036640,1709329882586,-500.0,0.00022794,2]
[316036641,1709329882596,-500.0,0.00022794,2]
[316036642,1709329882607,-500.0,0.00022794,2]
[316036643,1709329882617,-500.0,0.00022794,2]
[316036644,1709329882627,-648.85,0.00022794,2]
[316036645,1709329882637,-500.0,0.00022794,2]
[316036646,1709329882647,-500.0,0.00022794,2]
[316036647,1709329882657,-500.0,0.00022794,2]
[316036648,1709329882667,-548.39,0.00022794,2]
[316036649,1709329882678,-500.0,0.00022794,2]
[316036650,1709329882688,-500.0,0.00022794,2]
[316036651,1709329882698,-500.0,0.00022794,2]
[316036652,1709329882708,-500.0,0.00022794,2]
[316036653,1709329882718,-500.0,0.00022794,2]
[316036654,1709329882729,-309.04,0.00022794,2]
[316036655,1709329882739,-547.18,0.00022794,2]
[316036656,1709329882749,-500.0,0.00022794,2]
[316036657,1709329882758,-500.0,0.00022794,2]
[316036658,1709329882768,-500.0,0.00022794,2]
[316036659,1709329882777,-500.0,0.00022794,2]
[316036660,1709329882787,-500.0,0.00022794,2]
[316036661,1709329882797,-500.0,0.00022794,2]
[316036662,1709329882807,-500.0,0.00022794,2]
[316036663,1709329882817,-500.0,0.00022794,2]
[316036664,1709329882828,-560.2,0.00022794,2]
[316036665,1709329882838,-712.48,0.00022794,2]
[316036666,1709329882848,-500.0,0.00022794,2]
[316036667,1709329882857,-583.5,0.00022794,2]
[316036668,1709329882868,-885.54,0.00022794,2]
[316036669,1709329882877,-641.34,0.00022794,2]
[316036670,1709329882887,-541.37,0.00022794,2]
[316036671,1709329882897,-465.70855965,0.00022794,2]
[316036672,1709329882907,-500.0,0.00022794,2]
[316036673,1709329882916,-500.0,0.00022794,2]
[316036674,1709329882926,-665.0,0.00022794,2]